bitfinex/quotes_ETHUSD_20250602
["timestamp","ask_amount","ask_price","bid_price","bid_amount"]
[1748880967021,10.8212,2540.0,2539.5,3.93778302]
[1748880967232,0.0492094,2539.9,2539.7,3.9374046]
[1748880967661,0.0492094,2539.9,2539.4,4.096]
[1748880967833,0.0492094,2539.9,2539.4,4.97917915]
[1748880968027,10.8212,2540.0,2539.8,3.93716399]
[1748880968232,10.0,2540.0,2539.9,3.93716288]
[1748880970776,10.36863818,2540.0,2539.9,3.93716288]
[1748880970989,10.0,2540.0,2539.9,3.93716288]
[1748880971280,10.0,2540.0,2539.9,4.59211801]
[1748880972754,10.36863137,2540.0,2539.9,4.59211801]
[1748880972955,10.0,2540.0,2539.9,4.59211801]
[1748880974039,10.0,2540.0,2539.8,8.03316399]
[1748880974040,14.64916044,2540.0,2539.8,3.93726047]
[1748880974287,14.64916044,2540.0,2539.9,3.93716288]
[1748880974487,14.64916044,2540.0,2539.6,4.096]
[1748880974779,4.64916044,2539.8,2539.6,3.93753321]
[1748880975082,4.64916044,2539.8,2539.7,3.93747292]
[1748880977047,0.76,2539.9,2539.8,3.93731789]
[1748880977484,0.76,2539.9,2539.7,3.93738939]
[1748880977661,0.76,2539.9,2539.7,3.93731822]
[1748880977858,4.64916044,2539.8,2539.7,3.93731822]
[1748880978385,5.84683504,2539.8,2539.2,3.93821026]
[1748880978582,4.64916044,2539.4,2539.3,3.93798548]
[1748880978882,4.64916044,2539.6,2539.5,3.93778133]
[1748880979384,4.64916044,2539.6,2539.4,3.9378531]
[1748880979550,4.64916044,2539.6,2539.5,3.93778302]
[1748880979947,4.64916044,2539.6,2539.3,3.93804095]
[1748880980175,4.64916044,2539.6,2539.4,3.9378016]
[1748880980701,4.64916044,2539.6,2539.4,3.93782573]
[1748880980903,4.64916044,2539.6,2539.0,3.93846158]
[1748880980904,5.26910231,2539.5,2539.0,3.93849307]
[1748880981064,4.64916044,2539.2,2539.1,3.93840337]
[1748880981450,4.64916044,2539.4,2539.3,3.93809317]
[1748880982069,5.51546984,2539.5,2539.0,4.095]
[1748880982401,4.64916044,2539.3,2539.2,3.93824826]
[1748880983490,4.64916044,2539.3,2539.1,3.93835788]
[1748880983693,0.8559094,2539.2,2538.7,3.93893799]
[1748880983889,4.64916044,2538.8,2538.6,3.9390662]
[1748880984105,4.64916044,2538.7,2538.4,3.93942068]
[1748880984305,4.64916044,2538.5,2538.1,3.95987344]
[1748880984504,4.64916044,2538.2,2538.1,3.95987344]
[1748880985022,5.44696044,2538.2,2538.1,0.02]
[1748880985173,19.3840421,2538.2,2538.1,0.02]
[1748880985367,0.55,2537.8,2537.1,0.02]
[1748880985573,0.7501,2537.3,2537.1,0.02]
[1748880985943,0.7501,2537.3,2537.1,3.96150163]
[1748880985944,0.7993094,2537.3,2537.1,3.96150163]
[1748880986074,0.7501,2537.7,2537.1,0.81032862]
[1748880986279,0.7501,2537.7,2537.4,3.94103706]
[1748880986694,0.7501,2537.7,2537.2,0.03940859]
[1748880986905,0.7501,2537.7,2537.6,3.94073139]
[1748880987113,9.95223285,2538.2,2537.9,3.94026557]
[1748880987114,0.8136,2538.0,2537.9,3.94026557]
[1748880987311,1.087,2538.2,2537.6,4.8729]
[1748880987615,1.47597529,2538.2,2538.1,3.93995508]
[1748880987809,1.70985376,2538.2,2538.1,3.93995508]
[1748880987983,2.07818119,2538.2,2538.1,3.93995508]
[1748880988309,1.70985376,2538.2,2537.9,3.94016172]
[1748880988511,1.70985376,2538.2,2538.0,3.94009269]
[1748880988699,1.70985376,2538.2,2537.9,3.94017161]
[1748880988900,1.70985376,2538.2,2537.9,3.94026557]
[1748880989302,0.0492094,2538.1,2537.8,3.94034331]
[1748880989502,1.1738474,2538.1,2537.7,3.94049667]
[1748880989674,0.55,2537.8,2537.2,3.94131081]
[1748880989882,9.48731681,2537.6,2537.2,3.94131081]
[1748880990074,9.48731681,2537.6,2537.3,3.94119733]
[1748880990270,9.48731681,2537.6,2537.4,3.94101819]
[1748880990475,10.49104849,2537.6,2537.3,3.9411426]
[1748880990692,0.0492094,2537.5,2537.1,3.96145902]
[1748880990908,10.49104849,2537.6,2537.3,3.94111577]
[1748880991118,10.49104849,2537.6,2537.4,3.94104106]
[1748880991415,10.49104849,2537.6,2537.4,3.94104201]
[1748880991618,1.04910485,2537.5,2537.4,3.94104201]
[1748880991816,4.096,2537.8,2537.6,3.94069822]
[1748880992117,1.1372094,2537.8,2537.4,3.94094504]
[1748880992311,1.1372094,2537.8,2537.5,3.94085864]
[1748880992899,1.1372094,2537.8,2536.9,4.8937]
[1748880993097,1.54915262,2537.7,2537.5,3.94087016]
[1748880993302,0.36825472,2537.6,2537.5,3.94087016]
[1748880993511,1.54915262,2537.7,2537.5,3.94087016]
[1748880993693,1.54915262,2537.7,2537.4,3.94104201]
[1748880993889,1.54915262,2537.7,2537.3,3.94116491]
[1748880994087,1.54915262,2537.7,2537.4,3.94089383]
[1748880994628,1.54915262,2537.7,2537.5,3.94086816]
[1748880995122,1.54915262,2537.7,2537.6,3.94073139]
[1748880995323,1.1372094,2537.8,2537.6,3.94073139]
[1748880995486,1.1372094,2537.8,2537.6,3.94068566]
[1748880995688,1.088,2537.8,2537.3,0.03940744]
[1748880995885,10.25831681,2537.9,2537.8,3.94042083]
[1748880996089,0.771,2537.9,2537.8,3.94042083]
[1748880996300,1.13928255,2537.9,2537.8,3.94042083]
[1748880996701,10.6914921,2538.2,2538.1,3.93995508]
[1748880996899,13.39917442,2538.2,2538.1,3.93995508]
[1748880997193,0.38897529,2538.2,2538.1,3.93995508]
[1748880997529,1.088,2538.4,2538.2,3.93971735]
[1748880998132,1.088,2538.4,2538.0,3.94007753]
[1748880998336,0.0492094,2538.3,2538.0,3.94010498]
[1748880998693,0.0492094,2538.3,2537.8,3.94028051]
[1748880998902,9.48731681,2538.1,2537.8,3.9403866]
[1748880999199,0.41750545,2538.0,2537.6,3.94063702]
[1748880999401,0.0492094,2538.0,2537.8,3.94041834]
[1748880999598,9.48731681,2538.1,2537.9,3.94023372]
[1748881000006,0.39332815,2538.3,2538.2,3.93979985]
[1748881000210,0.9304126,2538.3,2538.0,3.9400018]
[1748881000452,0.979622,2538.3,2537.9,3.94018208]
[1748881000666,0.979622,2538.3,2537.9,3.94017257]
[1748881000801,0.979622,2538.3,2538.0,3.94009696]
[1748881001114,1.38282556,2538.3,2538.0,3.94009696]
[1748881001526,5.47982556,2538.3,2538.0,3.94004456]
[1748881001734,5.47982556,2538.3,2537.9,3.94017768]
[1748881002633,5.47982556,2538.3,2537.8,3.94029236]
[1748881003118,5.47982556,2538.3,2538.0,3.94009577]
[1748881003443,4.50020356,2538.3,2538.1,3.93994681]
[1748881003658,0.40320356,2538.3,2538.2,3.93979985]
[1748881004023,1.088,2538.4,2538.3,3.93964464]
[1748881004616,1.4858459,2538.4,2538.3,3.93964464]
[1748881005428,0.0492094,2538.7,2538.2,3.97918941]
[1748881005624,0.02,2538.9,2538.8,3.93886875]
[1748881005625,0.405476,2538.9,2538.8,3.93886875]
[1748881005849,0.02,2538.9,2538.8,3.93886875]
[1748881006051,0.02,2538.9,2538.8,3.97825167]
[1748881006225,0.02,2538.9,2538.6,8.0]
[1748881006438,0.02,2538.9,2538.8,3.93886875]
[1748881006632,0.3884244,2538.9,2538.8,3.93886875]
[1748881006832,0.02,2538.9,2538.8,3.93886875]
[1748881007475,0.38842346,2538.9,2538.8,3.93886875]
[1748881009269,0.38842346,2538.9,2538.8,3.96416875]
[1748881012978,0.75670439,2538.9,2538.8,3.96416875]
[1748881013180,0.38842346,2538.9,2538.8,3.96416875]
[1748881015960,0.38842346,2538.9,2538.8,11.96416875]
[1748881017395,0.38842346,2538.9,2538.8,11.93886875]
[1748881017599,0.38842346,2538.9,2538.8,3.93886875]
[1748881018171,0.38842346,2538.9,2538.8,3.94873378]
[1748881018376,0.38842346,2538.9,2538.8,5.21450955]
[1748881018720,0.38842346,2538.9,2538.8,11.97403378]
[1748881018909,0.38842346,2538.9,2538.8,11.96416875]
[1748881020616,0.38842346,2538.9,2538.8,16.05916875]
[1748881020819,0.38842346,2538.9,2538.8,20.82916875]
[1748881024419,0.38842346,2538.9,2538.8,21.37916875]
[1748881024829,0.36856773,2539.8,2539.7,3.93747292]
[1748881025030,0.36856773,2539.8,2539.7,16.05677292]
[1748881025611,0.36856773,2539.8,2539.7,20.70399143]
[1748881025829,0.36856773,2539.8,2539.7,16.05677292]
[1748881028839,0.36856773,2539.8,2539.7,16.10100509]
[1748881029637,0.02,2539.9,2539.7,16.10100509]
[1748881029638,0.02,2539.9,2539.8,8.55]
[1748881029942,0.02,2540.9,2540.8,11.96106826]
[1748881030147,0.02,2540.9,2540.8,16.05406826]
[1748881030524,0.02,2540.9,2540.8,16.09645454]
[1748881032807,0.02,2540.9,2540.8,12.00345454]
[1748881034452,0.02,2540.9,2540.8,11.97815454]
[1748881034745,0.02,2540.9,2540.8,3.97815454]
[1748881035146,0.02,2540.9,2540.8,11.97815454]
[1748881035511,0.02,2540.9,2540.8,16.74815454]
[1748881037325,0.02,2540.9,2540.8,0.04238628]
[1748881037512,0.02,2540.9,2540.8,3.97815454]
[1748881038025,0.02,2540.9,2540.8,3.98793991]
[1748881038222,0.02,2540.9,2540.8,3.97815454]
[1748881038558,0.02,2540.9,2540.8,0.04238628]
[1748881038768,0.02,2540.9,2540.8,3.97815454]
[1748881039116,0.02,2540.9,2540.8,0.04238628]
[1748881039428,0.02,2540.9,2540.8,3.97815454]
[1748881039633,0.02,2540.9,2540.8,0.04238628]
[1748881039827,0.02,2540.9,2540.8,3.97815454]
[1748881040446,0.02,2540.9,2540.8,3.98794704]
[1748881040656,0.02,2540.9,2540.8,4.78032417]
[1748881040817,0.02,2540.9,2540.8,12.77053851]
[1748881042958,0.02,2540.9,2540.8,11.97815454]
[1748881043164,0.7991,2540.9,2540.8,3.97815454]
[1748881043361,0.7991,2540.9,2540.8,0.04238628]
[1748881043523,0.7991,2540.9,2540.8,3.97815454]
[1748881044527,0.7991,2540.9,2540.8,3.98795168]
[1748881044759,0.02,2540.9,2540.8,3.97815454]
[1748881048257,0.02,2540.9,2540.8,0.04238628]
[1748881048454,0.7772,2540.9,2540.8,0.04238628]
[1748881048794,1.80618348,2540.9,2540.3,4.77]
[1748881049082,10.30653536,2540.8,2539.7,4.77]
[1748881049281,0.7939,2540.7,2540.3,3.93649814]
[1748881049471,0.8012,2540.5,2540.2,3.93662155]
[1748881049659,0.8012,2540.5,2539.9,8.0]
[1748881049862,0.8012,2540.5,2540.3,3.93650917]
[1748881050095,0.8012,2540.5,2540.4,3.93638797]
[1748881050384,0.8012,2540.5,2540.3,3.93646601]
[1748881050884,0.8012,2540.5,2540.4,3.93638797]
[1748881054583,0.02,2540.9,2540.6,3.93598431]
[1748881054782,1.88429458,2540.9,2540.1,8.0]
[1748881054984,9.46343918,2540.5,2540.2,3.93662286]
[1748881055298,0.8328,2540.0,2539.1,0.0253]
[1748881055597,0.8328,2540.0,2538.9,3.93858105]
[1748881055598,0.8328,2539.8,2538.9,3.93859351]
[1748881055774,0.8328,2539.5,2538.7,3.9390239]
[1748881055973,0.88202484,2539.5,2539.2,3.93824406]
[1748881056398,0.8328,2539.5,2539.2,3.93822377]
[1748881056560,0.8328,2539.5,2539.1,3.93838206]
[1748881056892,0.88202533,2539.5,2539.3,3.93807023]
[1748881057098,0.88202533,2539.5,2539.2,3.93816708]
[1748881057477,0.88202533,2539.5,2539.3,3.93806972]
[1748881057683,2.32567178,2539.5,2539.3,3.93806972]
[1748881058207,2.32567178,2539.5,2539.2,3.93816666]
[1748881058514,2.32567178,2539.5,2539.3,3.93803481]
[1748881060312,2.32567178,2539.5,2538.7,0.87676001]
[1748881060517,10.26313918,2539.3,2538.6,0.03327619]
[1748881060674,0.7997,2538.9,2538.6,3.97240203]
[1748881060881,0.7997,2538.9,2538.2,4.7953]
[1748881060882,4.78776473,2538.9,2538.4,3.93946053]
[1748881061094,4.78776473,2538.9,2538.3,3.93957232]
[1748881061095,9.46343918,2538.7,2538.3,3.93957232]
[1748881061380,0.827,2538.5,2538.3,3.93957232]
[1748881061700,0.827,2538.5,2538.4,3.93948944]
[1748881062778,0.827,2538.5,2538.3,3.93952262]
[1748881063386,0.04924289,2538.4,2538.1,3.9598586]
[1748881063722,0.8207,2538.3,2538.1,0.02]
[1748881064021,0.87435044,2538.2,2538.1,0.02]
[1748881064712,1.95935044,2538.2,2538.1,3.95995508]
[1748881064878,1.95935044,2538.2,2538.1,0.02]
[1748881065513,1.95935044,2538.2,2538.1,3.95995508]
[1748881065686,0.87435044,2538.2,2538.1,3.95995508]
[1748881066229,0.8251,2538.2,2538.1,3.95995508]
[1748881066713,0.8251,2538.2,2538.1,0.02]
[1748881067077,0.8251,2538.2,2538.1,3.95995508]
[1748881067281,1.04615593,2538.2,2538.1,3.95995508]
[1748881067523,0.55,2538.7,2538.1,3.95995508]
[1748881067524,1.086,2538.6,2538.1,0.02]
[1748881067691,1.086,2538.6,2538.5,3.93933425]
[1748881067891,1.8532,2538.7,2538.6,3.93917907]
[1748881068094,1.8532,2538.7,2538.5,3.93927133]
[1748881068920,0.2210654,2538.6,2538.5,3.93927133]
[1748881069122,1.8532,2538.7,2538.5,3.93927133]
[1748881069422,1.8532,2538.7,2538.6,3.93917907]
[1748881069623,0.7672,2538.7,2538.6,3.93917907]
[1748881069834,1.8873,2539.0,2538.7,3.93890628]
[1748881070032,1.84239559,2539.0,2538.7,3.93890628]
[1748881070228,1.84239559,2539.0,2538.2,8.0]
[1748881070428,0.8013,2539.0,2538.9,3.93871361]
[1748881071307,0.8198,2539.3,2539.1,3.93839363]
[1748881071483,0.8198,2539.3,2539.2,3.93824826]
[1748881071688,0.8198,2539.3,2539.1,3.93831948]
[1748881071925,0.8198,2539.3,2539.2,3.93824826]
[1748881072102,1.04089117,2539.3,2539.2,3.93824826]
[1748881072297,0.8198,2539.3,2539.2,3.93824826]
[1748881073956,0.8198,2539.3,2539.1,3.93832114]
[1748881076726,0.8198,2539.3,2539.0,3.93846707]
[1748881076929,0.8198,2539.3,2539.0,3.93843629]
[1748881077134,0.8198,2539.3,2539.1,3.93839385]
[1748881077759,0.7888,2539.6,2539.5,3.93778302]
[1748881078048,0.40285899,2539.8,2539.6,3.93753546]
[1748881078251,1.92301981,2539.9,2539.6,3.93753546]
[1748881078450,1.8738,2539.9,2539.1,4.72609275]
[1748881078589,1.8738,2539.9,2539.8,3.93731789]
[1748881078791,1.8738,2539.9,2539.1,0.78770071]
[1748881079035,1.8738,2539.9,2539.7,3.93735176]
[1748881079837,1.8738,2539.9,2539.6,3.93755371]
[1748881080153,0.04921896,2539.8,2539.6,3.93755371]
[1748881080462,0.04921896,2539.8,2539.6,3.93761025]
[1748881080598,0.04921896,2539.8,2539.5,3.93775392]
[1748881080797,1.58157061,2539.8,2539.4,3.93792758]
[1748881081133,1.58157061,2539.8,2539.5,3.93768878]
[1748881081338,1.58157061,2539.8,2539.6,3.93762286]
[1748881081501,1.53235165,2539.8,2539.3,3.93809317]
[1748881081705,1.8738,2539.9,2539.7,3.93747292]
[1748881082016,2.26491138,2539.9,2539.7,3.93733908]
[1748881082215,2.26491138,2539.9,2539.8,3.93731789]
[1748881082532,2.26491138,2539.9,2539.0,11.96378702]
[1748881082533,2.26491138,2539.9,2539.5,3.93772381]
[1748881082755,1.17991138,2539.9,2539.7,3.93747292]
[1748881083055,5.9864,2540.1,2539.4,8.0]
[1748881083235,0.8094,2540.1,2540.0,3.93700787]
[1748881083625,1.53087564,2540.3,2540.2,3.93669789]
[1748881083934,1.13421183,2540.3,2540.2,3.93669789]
[1748881084122,1.13421183,2540.3,2540.0,3.93687713]
[1748881084322,1.13421183,2540.3,2540.1,3.9368481]
[1748881084540,2.68490693,2540.3,2540.1,3.9368481]
[1748881085139,2.68490693,2540.3,2539.6,11.937482]
[1748881085435,1.085,2540.3,2540.2,3.93669789]
[1748881085644,0.8173,2540.4,2540.3,3.93654292]
[1748881086021,0.7704,2540.9,2540.7,3.93579534]
[1748881086223,0.7704,2540.9,2540.8,3.93576826]
[1748881086461,0.02,2540.9,2540.8,3.93576826]
[1748881086852,0.06919274,2540.9,2540.5,3.93612104]
[1748881087157,0.06919274,2540.9,2540.8,3.93576826]
[1748881087158,1.55034382,2540.9,2540.8,3.93576826]
[1748881087361,0.02,2540.9,2540.8,3.93576826]
[1748881087518,0.24131163,2540.9,2540.8,3.93576826]
[1748881087722,0.02,2540.9,2540.8,3.93576826]
[1748881087918,0.02,2540.9,2540.2,0.0253]
[1748881088122,9.46343918,2540.7,2540.0,4.7953]
[1748881088367,5.00679041,2540.6,2540.1,3.93676765]
[1748881088522,0.824,2540.3,2539.5,3.93764151]
[1748881088722,9.46343918,2540.4,2539.1,0.0253]
[1748881088723,0.824,2539.9,2539.1,0.0253]
[1748881088953,5.176,2540.2,2540.0,3.93688494]
[1748881089159,0.8732125,2540.4,2540.0,3.93688494]
[1748881089341,5.178,2540.3,2539.8,3.93722261]
[1748881089554,0.65433375,2540.2,2540.0,3.93696864]
[1748881089875,1.13421245,2540.3,2540.0,3.93693566]
[1748881090228,0.04921245,2540.3,2540.0,3.93693566]
[1748881090456,1.085,2540.3,2540.2,3.93669789]
[1748881090661,1.085,2540.3,2540.0,3.93688284]
[1748881090847,1.085,2540.3,2539.4,3.96313899]
[1748881090848,0.04921056,2540.2,2539.4,3.96313899]
[1748881091022,14.64143918,2540.3,2539.9,3.9370891]
[1748881091225,0.04921057,2540.2,2539.9,3.9370891]
[1748881091653,0.04921057,2540.2,2540.0,3.9369248]
[1748881092154,0.04921057,2540.2,2539.5,4.33409692]
[1748881092352,0.04921057,2540.2,2539.8,3.93725128]
[1748881092551,1.08287555,2540.2,2539.8,3.93725128]
[1748881092762,1.08287555,2540.2,2539.9,3.93716003]
[1748881093074,1.08287555,2540.2,2540.0,3.93700565]
[1748881093572,1.08287555,2540.2,2539.7,3.94730017]
[1748881093753,1.085,2540.3,2540.2,3.93669789]
[1748881094673,1.13420632,2540.3,2540.0,3.93691788]
[1748881094870,1.13420632,2540.3,2540.1,3.93685257]
[1748881095046,1.13420632,2540.3,2539.6,11.93760207]
[1748881095047,11.18709826,2540.3,2539.5,4.33402553]
[1748881095368,11.13789194,2540.3,2539.9,3.93706617]
[1748881095569,3.93672984,2540.2,2539.6,3.93758671]
[1748881095869,0.8112,2540.0,2539.6,3.9375656]
[1748881096074,0.8112,2540.0,2539.7,3.93739089]
[1748881096377,0.8112,2540.0,2539.9,3.93716288]
[1748881096970,1.40415276,2540.3,2540.0,3.93688425]
[1748881097169,0.8147,2540.3,2540.1,3.93684883]
[1748881097367,0.8147,2540.3,2540.1,3.93682602]
[1748881097574,0.8147,2540.3,2539.9,3.93712117]
[1748881097784,0.8147,2540.3,2540.0,3.93694292]
[1748881098180,0.04921254,2540.2,2539.8,3.9372441]
[1748881098480,13.40032259,2540.1,2539.6,3.93752358]
[1748881098681,0.04921935,2540.0,2539.7,3.93747111]
[1748881098985,14.64443918,2540.1,2539.7,3.93733596]
[1748881099643,0.04921883,2540.0,2539.7,3.93733596]
[1748881099855,0.04921883,2540.0,2539.4,0.00983868]
[1748881100055,0.04921883,2540.0,2539.5,3.93767843]
[1748881100056,1.99962939,2540.0,2539.5,3.93767843]
[1748881100255,1.99962939,2540.0,2539.0,4.096]
[1748881100256,0.7735,2539.9,2539.6,3.93757125]
[1748881101293,3.9374916,2539.7,2538.8,3.93886875]
[1748881101588,0.7767,2539.5,2539.2,3.9381849]
[1748881102082,0.04922785,2539.4,2539.2,3.9381849]
[1748881102292,4.095,2539.7,2539.2,0.00986156]
[1748881102498,0.8081,2539.8,2539.7,3.93747292]
[1748881102803,1.8931,2540.1,2540.0,3.93700787]
[1748881103003,0.8081,2540.1,2540.0,3.93700787]
[1748881103292,0.8081,2540.1,2539.9,3.93714252]
[1748881103591,0.8081,2540.1,2540.0,3.93700787]
[1748881103766,0.8081,2540.1,2539.9,3.93708058]
[1748881103969,0.8081,2540.1,2540.0,3.93700787]
[1748881105077,0.8081,2540.1,2539.3,8.0]
[1748881105281,0.8081,2540.1,2540.0,3.93700787]
[1748881105591,0.049213,2540.3,2540.2,3.93669789]
[1748881105764,0.8194,2540.4,2540.2,3.93669789]
[1748881105968,0.04920943,2540.3,2540.1,3.93678934]
[1748881106183,0.04920943,2540.3,2540.2,3.93669789]
[1748881106402,0.04920943,2540.3,2539.6,3.93747348]
[1748881106593,0.04920943,2540.3,2539.9,3.9371572]
[1748881106594,0.65397037,2540.3,2539.9,3.9371572]
[1748881107291,0.65397037,2540.3,2539.8,3.93731618]
[1748881107292,3.93672353,2540.2,2539.8,3.93724707]
[1748881107507,0.04921471,2540.1,2539.9,3.93715444]
[1748881108020,0.7594,2540.0,2539.1,0.0253]
[1748881108234,0.7594,2539.4,2538.8,0.0253]
[1748881108379,0.80862906,2539.4,2539.2,3.93811309]
[1748881108773,0.80862906,2539.4,2538.8,0.0253]
[1748881109085,13.40169391,2539.2,2538.7,3.93890778]
[1748881109294,9.46343918,2538.9,2538.1,0.02]
[1748881109474,9.46343918,2538.6,2538.3,3.93957544]
[1748881109679,0.04924692,2538.5,2538.3,3.93957544]
[1748881110038,5.19,2538.8,2538.5,3.93924013]
[1748881110210,0.0492424,2538.7,2538.6,3.93917907]
[1748881110370,6.0022,2539.0,2538.7,3.93894562]
[1748881110574,0.78923694,2538.9,2538.7,3.93894562]
[1748881111116,0.83847639,2538.9,2538.7,3.93894562]
[1748881111287,0.04923945,2538.9,2538.1,3.95980762]
[1748881111485,1.89016939,2539.1,2538.1,3.95980762]
[1748881111486,1.088,2539.1,2538.7,3.9390239]
[1748881111684,1.088,2539.1,2538.5,0.0253]
[1748881111685,0.04923254,2539.0,2538.8,3.93875719]
[1748881111899,0.04923254,2539.0,2538.8,3.93886875]
[1748881112086,0.04923254,2539.0,2538.9,3.93871361]
[1748881112285,0.04923254,2539.0,2538.7,3.93893016]
[1748881112490,0.04923254,2539.0,2538.8,3.93885493]
[1748881112700,1.13723544,2539.1,2538.9,3.93871361]
[1748881113807,1.088,2539.1,2538.4,3.93948186]
[1748881113999,1.088,2539.1,2538.9,3.93871041]
[1748881114399,1.088,2539.1,2538.9,3.93871274]
[1748881114601,1.088,2539.1,2538.8,3.93878352]
[1748881115109,1.088,2539.1,2538.9,3.93861765]
[1748881115319,1.088,2539.1,2538.5,3.94915644]
[1748881115320,0.04923542,2539.2,2539.0,3.93855848]
[1748881115619,0.38492731,2539.4,2539.3,3.93809317]
[1748881115812,0.772,2539.6,2539.2,3.93815254]
[1748881116000,0.772,2539.6,2538.8,0.0253]
[1748881116178,0.772,2539.6,2539.2,3.93824826]
[1748881116505,4.70967114,2539.6,2539.1,3.9383304]
[1748881116709,1.38361663,2539.5,2539.0,3.93849955]
[1748881116926,1.38361663,2539.5,2539.1,3.93831507]
[1748881117123,0.04922978,2539.4,2539.1,3.93831507]
[1748881118119,0.04922978,2539.4,2539.0,3.93850436]
[1748881118337,0.784,2539.1,2538.8,3.93880221]
[1748881118620,0.784,2539.1,2538.9,3.93868932]
[1748881118621,0.83323442,2539.1,2538.9,3.93868932]
[1748881119181,0.83323442,2539.1,2539.0,3.93855848]
[1748881119382,1.38361663,2539.5,2539.0,3.93855848]
[1748881119612,0.784,2539.4,2539.2,3.93817127]
[1748881119921,0.784,2539.4,2538.8,0.00986369]
[1748881120121,0.04922976,2539.3,2538.9,3.9386335]
[1748881120640,0.04922976,2539.3,2539.0,3.93854731]
[1748881120801,0.04922976,2539.3,2539.1,3.93840214]
[1748881121146,1.381,2539.4,2539.1,3.93840214]
[1748881121147,0.784,2539.4,2539.1,3.93826522]
[1748881121304,0.83322976,2539.4,2539.1,3.93826522]
[1748881121699,0.83322976,2539.4,2539.0,3.93848253]
[1748881121938,1.43575274,2539.4,2539.0,3.93848253]
[1748881122345,1.43575274,2539.4,2539.1,3.93838499]
[1748881122838,1.83150148,2539.4,2539.1,3.93833538]
[1748881123142,1.83150148,2539.4,2539.1,3.93839057]
[1748881123445,1.78227172,2539.4,2539.1,3.93839057]
[1748881123853,1.78227172,2539.4,2539.2,3.9381617]
[1748881124018,1.17974874,2539.4,2539.1,3.93840337]
[1748881124217,0.39574874,2539.4,2539.3,3.93809317]
[1748881124528,1.088,2539.8,2539.7,3.93747292]
[1748881124920,0.7753,2540.3,2540.2,3.93669789]
[1748881125103,0.7753,2540.6,2540.4,3.93633901]
[1748881125301,1.8693,2540.9,2539.9,3.93716288]
[1748881125552,0.04920147,2540.8,2540.2,3.93669789]
[1748881125702,0.04920147,2540.8,2540.6,3.93601]
[1748881125910,1.04105162,2540.8,2540.6,3.93601]
[1748881126342,1.17011363,2540.9,2540.6,3.93598363]
[1748881126559,1.17011363,2540.9,2540.7,3.93581837]
[1748881127945,1.21931239,2540.9,2540.6,3.93600096]
[1748881128446,1.21931239,2540.9,2540.7,3.93591203]
[1748881128627,1.21931239,2540.9,2540.6,3.93596577]
[1748881128831,2.2541746,2540.9,2540.6,3.93596577]
[1748881129033,2.2541746,2540.9,2540.5,3.93617604]
[1748881129243,11.71761378,2540.9,2540.0,0.0253]
[1748881129565,9.46343918,2540.8,2540.4,3.93635475]
[1748881129773,4.15720419,2540.7,2540.4,3.93635475]
[1748881129985,6.13333561,2540.7,2540.4,3.93635475]
[1748881130679,6.13333561,2540.7,2540.1,3.93685287]
[1748881130981,6.13333561,2540.7,2540.6,3.93607809]
[1748881131156,6.08413142,2540.7,2540.6,3.93607809]
[1748881131555,6.13333396,2540.7,2540.5,3.93617337]
[1748881131760,6.13333396,2540.7,2540.4,3.93634615]
[1748881131761,6.13333396,2540.7,2540.4,3.93629801]
[1748881133575,2.02533396,2540.7,2540.0,11.96215903]
[1748881133782,0.02,2540.9,2540.8,3.93576826]
[1748881138714,0.02,2540.9,2540.8,11.94555594]
[1748881138863,0.02,2540.9,2540.8,11.93576826]
[1748881139069,0.02,2540.9,2540.8,12.68639582]
[1748881140604,0.02,2540.9,2540.8,3.93576826]
[1748881142800,0.02,2540.9,2540.7,3.9359097]
[1748881143114,0.02,2540.9,2540.8,3.93576826]
[1748881143905,9.48343918,2540.9,2540.4,0.0253]
[1748881144108,0.86839965,2540.8,2540.5,3.93622196]
[1748881144291,9.46343918,2540.6,2539.8,0.0253]
[1748881144594,0.04920496,2540.5,2540.4,3.93638797]
[1748881144993,0.04920496,2540.5,2540.3,3.93645397]
[1748881145190,0.04920496,2540.5,2540.4,3.93638797]
[1748881146196,4.107,2540.6,2540.5,3.93623302]
[1748881147383,0.8192,2540.8,2540.7,3.93592317]
[1748881147580,0.02,2540.9,2540.8,3.93576826]
[1748881147817,0.62336,2540.9,2540.7,3.9358375]
[1748881148022,0.67255913,2540.9,2540.7,3.9358375]
[1748881148225,0.02,2540.9,2540.8,3.93576826]
[1748881148727,0.02,2540.9,2540.7,3.9358513]
[1748881149090,0.02,2540.9,2540.8,3.93576826]
[1748881149994,0.02,2540.9,2540.8,3.96106826]
[1748881153040,0.02,2540.9,2540.8,3.97085227]
[1748881153337,0.02,2540.9,2540.8,4.75174333]
[1748881153543,0.02,2540.9,2540.8,4.7615239]
[1748881153947,0.02,2540.9,2540.8,4.75174333]
[1748881154354,0.02,2540.9,2540.8,3.93576826]
[1748881154650,0.02,2540.9,2540.6,3.93595684]
[1748881154823,0.06919766,2540.9,2540.7,3.93591997]
[1748881155946,9.53263684,2540.9,2540.6,3.93598676]
[1748881156274,0.55,2540.8,2540.4,3.93624718]
[1748881156566,0.04920407,2540.7,2540.5,3.93618779]
[1748881157253,2.54782015,2540.8,2540.1,0.00981156]
[1748881157254,2.54782015,2540.8,2540.6,3.93600873]
[1748881157431,0.04920344,2540.7,2540.5,3.93615593]
[1748881158114,0.36894929,2540.6,2540.5,3.93615593]
[1748881158313,0.36890957,2540.6,2540.4,3.93636477]
[1748881158632,0.36890957,2540.5,2540.4,3.93636477]
[1748881158943,0.04920344,2540.7,2540.6,3.93607809]
[1748881159143,0.41748904,2540.7,2540.2,3.93668479]
[1748881159329,0.04920344,2540.7,2540.2,3.93668479]
[1748881159515,0.04920344,2540.7,2540.4,3.93629437]
[1748881159716,10.80043918,2540.6,2539.9,3.93708856]
[1748881159913,9.46343918,2540.3,2539.9,3.93702471]
[1748881160113,0.04921299,2540.2,2540.1,3.93685287]
[1748881160345,9.46343918,2540.3,2540.1,3.93685287]
[1748881160749,0.04921178,2540.2,2540.0,3.93693374]
[1748881160930,0.818,2540.1,2540.0,3.93693374]
[1748881161455,0.818,2540.1,2539.5,0.0253]
[1748881161685,0.55,2539.9,2539.0,0.0253]
[1748881161838,0.04922104,2539.8,2539.1,3.93839798]
[1748881162036,0.04922104,2539.8,2539.6,3.93762601]
[1748881162857,0.04922104,2539.8,2539.5,3.93770882]
[1748881163050,0.7513,2539.6,2539.2,0.03326825]
[1748881163278,0.04922508,2539.5,2539.4,3.93793809]
[1748881163572,0.7513,2539.6,2539.5,3.93778302]
[1748881163772,0.8133,2539.8,2539.5,3.93771707]